fUSD/lending_fUSD_20240625
["ID","MTS","AMOUNT","RATE_DAILY","PERIOD"]
[330377273,1719337948790,-4820.28,0.00020821,2]
[330377274,1719337949016,-529.48,0.00020821,2]
[330377275,1719337949026,-1217.56,0.00020821,2]
[330377276,1719337949035,-1772.0,0.00020821,2]
[330377277,1719337949045,-2640.7,0.00020821,2]
[330377278,1719337949055,-1941.76,0.00020821,2]
[330377279,1719337949064,-500.0,0.00020821,2]
[330377280,1719337949073,-1336.39,0.00020821,2]
[330377281,1719337949083,-500.0,0.00020821,2]
[330377282,1719337949093,-1027.49,0.00020821,2]
[330377283,1719337949102,-1409.22,0.00020821,2]
[330377284,1719337949111,-500.0,0.00020821,2]
[330377285,1719337949121,-592.68,0.00020821,2]
[330377286,1719337949136,-814.4,0.00020821,2]
[330377287,1719337949145,-839.77,0.00020821,2]
[330377288,1719337949154,-965.36,0.00020821,2]
[330377289,1719337949168,-1417.51,0.00020821,2]
[330377290,1719337949178,-503.87644622,0.00020821,2]
[330377291,1719337949188,-500.0,0.00020821,2]
[330377292,1719337949198,-1173.93,0.00020821,2]
[330377293,1719337949211,-951.86,0.00020821,2]
[330377294,1719337949221,-835.47,0.00020821,2]
[330377295,1719337949232,-3257.55,0.00020821,2]
[330377296,1719337949246,-2073.78,0.00020821,2]
[330377297,1719337949258,-2021.58,0.00020821,2]
[330377298,1719337949268,-500.0,0.00020821,2]
[330377299,1719337949277,-2007.39,0.00020821,2]
[330377300,1719337949287,-973.12,0.00020821,2]
[330377301,1719337949296,-500.0,0.00020821,2]
[330377302,1719337949305,-500.0,0.00020821,2]
[330377303,1719337949314,-500.0,0.00020821,2]
[330377304,1719337949323,-567.86,0.00020821,2]
[330377305,1719337949332,-500.0,0.00020821,2]
[330377306,1719337949342,-500.0,0.00020821,2]
[330377307,1719337949351,-957.72,0.00020821,2]
[330377308,1719337949360,-500.0,0.00020821,2]
[330377309,1719337949370,-683.7,0.00020821,2]
[330377310,1719337949381,-4421.52,0.00020821,2]
[330377311,1719337949391,-1115.85,0.00020821,2]
[330377312,1719337949400,-500.0,0.00020821,2]
[330377313,1719337949409,-597.24,0.00020821,2]
[330377314,1719337949418,-517.85,0.00020821,2]
[330377315,1719337949428,-500.0,0.00020821,2]
[330377316,1719337949437,-500.0,0.00020821,2]
[330377317,1719337949447,-500.0,0.00020821,2]
[330377318,1719337949456,-500.0,0.00020821,2]
[330377319,1719337949466,-1088.07,0.00020821,2]
[330377320,1719337949476,-857.24,0.00020821,2]
[330377321,1719337949485,-2633.78,0.00020821,2]
[330377322,1719337949495,-500.0,0.00020821,2]
[330377323,1719337949504,-2105.71,0.00020821,2]
[330377324,1719337949514,-2302.84,0.00020821,2]
[330377325,1719337949523,-500.0,0.00020821,2]
[330377326,1719337949533,-500.0,0.00020821,2]
[330377327,1719337949543,-1021.73,0.00020821,2]
[330377328,1719337949553,-3949.53,0.00020821,2]
[330377329,1719337949562,-500.0,0.00020821,2]
[330377330,1719337949571,-3888.53,0.00020821,2]
[330377331,1719337949581,-4247.19,0.00020821,2]
[330377332,1719337949591,-500.0,0.00020821,2]
[330377333,1719337949600,-918.37,0.00020821,2]
[330377334,1719337949610,-500.0,0.00020821,2]
[330377335,1719337949620,-3324.06,0.00020821,2]
[330377336,1719337949630,-4509.77,0.00020821,2]
[330377337,1719337949640,-524.5,0.00020821,2]
[330377338,1719337949649,-500.0,0.00020821,2]
[330377339,1719337949658,-2990.81,0.00020821,2]
[330377340,1719337949667,-770.81,0.00020821,2]
[330377341,1719337949677,-500.0,0.00020821,2]
[330377342,1719337949685,-500.0,0.00020821,2]
[330377343,1719337949694,-500.0,0.00020821,2]
[330377344,1719337949703,-4435.09,0.00020821,2]
[330377345,1719337949711,-787.48,0.00020821,2]
[330377346,1719337949720,-816.41,0.00020821,2]
[330377347,1719337949729,-524.09,0.00020821,2]
[330377348,1719337949738,-500.0,0.00020821,2]
[330377349,1719337949747,-2156.33,0.00020821,2]
[330377350,1719337949756,-588.33,0.00020821,2]
[330377351,1719337949765,-3040.27,0.00020821,2]
[330377352,1719337949775,-820.87,0.00020821,2]
[330377353,1719337949784,-3953.78,0.00020821,2]
[330377354,1719337949793,-615.73,0.00020821,2]
[330377355,1719337949803,-1819.63,0.00020821,2]
[330377356,1719337949813,-500.0,0.00020821,2]
[330377357,1719337949822,-500.0,0.00020821,2]
[330377358,1719337949832,-593.21,0.00020821,2]
[330377359,1719337949841,-752.59,0.00020821,2]
[330377360,1719337949851,-1620.29,0.00020821,2]
[330377361,1719337949860,-1102.6,0.00020821,2]
[330377362,1719337949869,-489.87490735,0.00020821,2]
[330377363,1719337949895,-2816.47,0.00020821,2]
[330377364,1719337949904,-500.0,0.00020821,2]
[330377365,1719337949913,-726.8,0.00020821,2]
[330377366,1719337949922,-904.28,0.00020821,2]
[330377367,1719337949931,-500.0,0.00020821,2]
[330377368,1719337949940,-4616.86,0.00020821,2]
[330377369,1719337949949,-500.0,0.00020821,2]
[330377370,1719337949959,-4354.84,0.00020821,2]
[330377371,1719337949968,-500.0,0.00020821,2]
[330377372,1719337949976,-1001.05,0.00020821,2]
[330377373,1719337949986,-2389.99,0.00020821,2]
[330377374,1719337949995,-1761.28,0.00020821,2]
[330377375,1719337950004,-745.04,0.00020821,2]
[330377376,1719337950012,-4472.18,0.00020821,2]
[330377377,1719337950022,-1342.38,0.00020821,2]
[330377378,1719337950031,-533.28887097,0.00020821,2]
[330377379,1719337950041,-500.0,0.00020821,2]
[330377380,1719337950050,-500.0,0.00020821,2]
[330377381,1719337950060,-1202.61,0.00020821,2]
[330377382,1719337950069,-956.56,0.00020821,2]
[330377383,1719337950079,-4593.86,0.00020821,2]
[330377384,1719337950088,-500.0,0.00020821,2]
[330377385,1719337950098,-1877.02,0.00020821,2]
[330377386,1719337950107,-528.63,0.00020821,2]
[330377387,1719337950117,-500.0,0.00020821,2]
[330377388,1719337950127,-1269.87,0.00020821,2]
[330377389,1719337950137,-500.0,0.00020821,2]
[330377390,1719337950146,-500.0,0.00020821,2]
[330377391,1719337950155,-2157.36,0.00020821,2]
[330377392,1719337950166,-500.0,0.00020821,2]
[330377393,1719337950178,-500.0,0.00020821,2]
[330377394,1719337950187,-1489.93,0.00020821,2]
[330377395,1719337950196,-500.0,0.00020821,2]
[330377396,1719337950206,-4713.61,0.00020821,2]
[330377397,1719337950216,-875.21,0.00020821,2]
[330377398,1719337950225,-497.59042857,0.00020821,2]
[330377399,1719337950234,-3570.88,0.00020821,2]
[330377400,1719337950246,-3239.05,0.00020821,2]
[330377401,1719337950254,-3523.21,0.00020821,2]
[330377402,1719337950263,-517.55,0.00020821,2]
[330377403,1719337950273,-88150.18,0.00020821,2]
[330377404,1719337950282,-7491.31,0.00020821,2]
[330377405,1719337950291,-724.21,0.00020821,2]
[330377406,1719337950301,-506.86573495,0.00020821,2]
[330377407,1719337950310,-500.0,0.00020821,2]
[330377408,1719337950320,-500.0,0.00020821,2]
[330377409,1719337950329,-500.0,0.00020821,2]
[330377410,1719337950339,-1942.81,0.00020821,2]
[330377411,1719337950348,-1819.03,0.00020821,2]
[330377412,1719337950357,-504.65,0.00020821,2]
[330377413,1719337950367,-503.8,0.00020821,2]
[330377414,1719337950380,-755.86,0.00020821,2]
[330377415,1719337950389,-500.0,0.00020821,2]
[330377416,1719337950398,-500.0,0.00020821,2]
[330377417,1719337950408,-500.0,0.00020821,2]
[330377418,1719337950417,-500.0,0.00020821,2]
[330377419,1719337950427,-500.0,0.00020821,2]
[330377420,1719337950437,-1033.56,0.00020821,2]
[330377421,1719337950447,-867.52,0.00020821,2]
[330377422,1719337950456,-3677.19,0.00020821,2]
[330377423,1719337950466,-869.1,0.00020821,2]
[330377424,1719337950475,-500.0,0.00020821,2]
[330377425,1719337950484,-2597.7,0.00020821,2]
[330377426,1719337950495,-1409.52,0.00020821,2]
[330377427,1719337950505,-500.0,0.00020821,2]
[330377428,1719337950514,-719.97,0.00020821,2]
[330377429,1719337950523,-500.0,0.00020821,2]
[330377430,1719337950532,-4086.22,0.00020821,2]
[330377431,1719337950541,-522.58,0.00020821,2]
[330377432,1719337950550,-4448.43,0.00020821,2]
[330377433,1719337950559,-504.45,0.00020821,2]
[330377434,1719337950568,-500.0,0.00020821,2]
[330377435,1719337950577,-151.813821,0.00020821,2]
[330377436,1719337950586,-1285.26,0.00020821,2]
[330377437,1719337950596,-881.49,0.00020821,2]
[330377438,1719337950605,-1817.94,0.00020821,2]
[330377439,1719337950614,-922.55,0.00020821,2]
[330377440,1719337950623,-5556.35,0.00020821,2]
[330377441,1719337950632,-4305.82,0.00020821,2]
[330377442,1719337950642,-500.0,0.00020821,2]
[330377443,1719337950650,-1298.55,0.00020821,2]
[330377444,1719337950660,-1507.92,0.00020821,2]
[330377445,1719337950669,-2413.43,0.00020821,2]
[330377446,1719337950689,-504.87305903,0.00020821,2]
[330377447,1719337950708,-3590.68,0.00020821,2]
[330377448,1719337950726,-3243.57,0.00020821,2]
[330377449,1719337950744,-1317.91,0.00020821,2]
[330377450,1719337950767,-1549.61,0.00020821,2]
[330377451,1719337950784,-2001.24,0.00020821,2]
[330377452,1719337950803,-564.53,0.00020821,2]
[330377453,1719337950817,-1628.62,0.00020821,2]
[330377454,1719337950836,-2964.41,0.00020821,2]
[330377455,1719337950854,-733.32,0.00020821,2]
[330377456,1719337950873,-500.0,0.00020821,2]
[330377457,1719337950887,-3914.84,0.00020821,2]
[330377458,1719337950906,-3375.19,0.00020821,2]
[330377459,1719337950921,-500.0,0.00020821,2]
[330377460,1719337950937,-2549.76,0.00020821,2]
[330377461,1719337950953,-971.21,0.00020821,2]
[330377462,1719337950968,-1141.9,0.00020821,2]
[330377463,1719337950983,-14641.98,0.00020821,2]
[330377464,1719337950998,-4437.26,0.00020821,2]
[330377465,1719337951012,-500.0,0.00020821,2]
[330377466,1719337951028,-716.2,0.00020821,2]
[330377467,1719337951043,-2142.83,0.00020821,2]
[330377468,1719337951058,-215.19671196,0.00020821,2]
[330377469,1719337951073,-1706.95,0.00020821,2]
[330377470,1719337951088,-500.0,0.00020821,2]
[330377471,1719337951105,-1309.2,0.00020821,2]
[330377472,1719337951120,-6040.67,0.00020821,2]
[330377473,1719337951134,-500.0,0.00020821,2]
[330377474,1719337951150,-500.0,0.00020821,2]
[330377475,1719337951169,-1734.08,0.00020821,2]
[330377476,1719337951184,-1799.68,0.00020821,2]
[330377477,1719337951199,-370.16396723,0.00020821,2]
[330377478,1719337951214,-500.0,0.00020821,2]
[330377479,1719337951229,-500.0,0.00020821,2]
[330377480,1719337951246,-1105.8,0.00020821,2]
[330377481,1719337951262,-955.34,0.00020821,2]
[330377482,1719337951277,-500.0,0.00020821,2]
[330377483,1719337951292,-2122.24,0.00020821,2]
[330377484,1719337951306,-1732.57,0.00020821,2]
[330377485,1719337951319,-500.0,0.00020821,2]
[330377486,1719337951335,-568.12,0.00020821,2]
[330377487,1719337951351,-1579.37,0.00020821,2]
[330377488,1719337951367,-3399.27,0.00020821,2]
[330377489,1719337951382,-500.0,0.00020821,2]
[330377490,1719337951397,-932.92,0.00020821,2]
[330377491,1719337951411,-2440.43,0.00020821,2]
[330377492,1719337951425,-1254.93,0.00020821,2]
[330377493,1719337951440,-3708.7,0.00020821,2]
[330377494,1719337951455,-2081.22,0.00020821,2]
[330377495,1719337951472,-1071.44,0.00020821,2]
[330377496,1719337951488,-500.0,0.00020821,2]
[330377497,1719337951503,-2321.72,0.00020821,2]
[330377498,1719337951518,-59416.31,0.00020821,2]
[330377499,1719337951533,-500.0,0.00020821,2]
[330377500,1719337951547,-1241.56,0.00020821,2]
[330377501,1719337951561,-2376.71,0.00020821,2]
[330377502,1719337951575,-500.0,0.00020821,2]
[330377503,1719337951590,-565.98,0.00020821,2]
[330377504,1719337951605,-564.08,0.00020821,2]
[330377505,1719337951620,-5136.03,0.00020821,2]
[330377506,1719337951635,-222.67001781,0.00020821,2]
[330377507,1719337951650,-2867.83,0.00020821,2]
[330377508,1719337951664,-572.13,0.00020821,2]
[330377509,1719337951677,-1989.23,0.00020821,2]
[330377510,1719337951693,-500.0,0.00020821,2]
[330377511,1719337951706,-572.5,0.00020821,2]
[330377512,1719337951720,-500.0,0.00020821,2]
[330377513,1719337951735,-1377.37,0.00020821,2]
[330377514,1719337951750,-2476.55,0.00020821,2]
[330377515,1719337951764,-7381.85,0.00020821,2]
[330377516,1719337951779,-2711.7,0.00020821,2]
[330377517,1719337951793,-500.0,0.00020821,2]
[330377518,1719337951806,-500.0,0.00020821,2]
[330377519,1719337951820,-500.0,0.00020821,2]
[330377520,1719337951833,-4739.43,0.00020821,2]
[330377521,1719337951847,-3777.42,0.00020821,2]
[330377522,1719337951860,-2118.67,0.00020821,2]
[330377523,1719337951875,-899.15,0.00020821,2]
[330377524,1719337951890,-3727.83,0.00020821,2]
[330377525,1719337951903,-500.0,0.00020821,2]
[330377526,1719337951917,-500.0,0.00020821,2]
[330377527,1719337951931,-1714.59,0.00020821,2]
[330377528,1719337951945,-1249.51,0.00020821,2]
[330377529,1719337951959,-500.0,0.00020821,2]
[330377530,1719337951974,-1124.92,0.00020821,2]
[330377531,1719337951987,-500.0,0.00020821,2]
[330377532,1719337952000,-7801.42,0.00020821,2]
[330377533,1719337952014,-500.0,0.00020821,2]
[330377534,1719337952028,-1269.94,0.00020821,2]
[330377535,1719337952044,-756.47,0.00020821,2]
[330377536,1719337952058,-1185.0,0.00020821,2]
[330377537,1719337952073,-500.0,0.00020821,2]
[330377538,1719337952087,-500.0,0.00020821,2]
[330377539,1719337952102,-513.46,0.00020821,2]
[330377540,1719337952115,-500.0,0.00020821,2]
[330377541,1719337952130,-5672.8,0.00020821,2]
[330377542,1719337952144,-500.0,0.00020821,2]
[330377543,1719337952159,-500.0,0.00020821,2]
[330377544,1719337952176,-534.89,0.00020821,2]
[330377545,1719337952190,-2615.49,0.00020821,2]
[330377546,1719337952204,-646.58,0.00020821,2]
[330377547,1719337952218,-1157.21,0.00020821,2]
[330377548,1719337952232,-804.63,0.00020821,2]
[330377549,1719337952247,-500.0,0.00020821,2]
[330377550,1719337952269,-2694.51,0.00020821,2]
[330377551,1719337952283,-500.0,0.00020821,2]
[330377552,1719337952297,-662.07,0.00020821,2]
[330377553,1719337952312,-2626.43,0.00020821,2]
[330377554,1719337952327,-1217.03,0.00020821,2]
[330377555,1719337952341,-771.68,0.00020821,2]
[330377556,1719337952356,-4836.5,0.00020821,2]
[330377557,1719337952369,-503.40395004,0.00020821,2]
[330377558,1719337952384,-500.0,0.00020821,2]
[330377559,1719337952398,-754.98,0.00020821,2]
[330377560,1719337952413,-1630.22,0.00020821,2]
[330377561,1719337952427,-2071.66,0.00020821,2]
[330377562,1719337952441,-1168.43,0.00020821,2]
[330377563,1719337952454,-524.31,0.00020821,2]
[330377564,1719337952469,-500.0,0.00020821,2]
[330377565,1719337952483,-500.0,0.00020821,2]
[330377566,1719337952498,-781.04,0.00020821,2]
[330377567,1719337952512,-1588.79,0.00020821,2]
[330377568,1719337952527,-500.0,0.00020821,2]
[330377569,1719337952541,-1092.3,0.00020821,2]
[330377570,1719337952554,-2469.59,0.00020821,2]
[330377571,1719337952569,-6611.18,0.00020821,2]
[330377572,1719337952583,-500.0,0.00020821,2]
[330377573,1719337952598,-500.0,0.00020821,2]
[330377574,1719337952612,-8477.0,0.00020821,2]
[330377575,1719337952627,-854.06,0.00020821,2]
[330377576,1719337952641,-536.71,0.00020821,2]
[330377577,1719337952656,-500.0,0.00020821,2]
[330377578,1719337952670,-987.05,0.00020821,2]
[330377579,1719337952684,-500.0,0.00020821,2]
[330377580,1719337952699,-5214.8,0.00020821,2]
[330377581,1719337952713,-500.0,0.00020821,2]
[330377582,1719337952728,-500.0,0.00020821,2]
[330377583,1719337952742,-500.0,0.00020821,2]
[330377584,1719337952756,-1672.78,0.00020821,2]
[330377585,1719337952770,-500.0,0.00020821,2]
[330377586,1719337952783,-500.0,0.00020821,2]
[330377587,1719337952799,-996.42,0.00020821,2]
[330377588,1719337952813,-3032.63,0.00020821,2]
[330377589,1719337952828,-500.0,0.00020821,2]
[330377590,1719337952842,-3109.31,0.00020821,2]
[330377591,1719337952856,-1348.4,0.00020821,2]
[330377592,1719337952870,-500.0,0.00020821,2]
[330377593,1719337952884,-650.12,0.00020821,2]
[330377594,1719337952898,-1123.41,0.00020821,2]
[330377595,1719337952912,-500.0,0.00020821,2]
[330377596,1719337952926,-10484.79,0.00020821,2]
[330377597,1719337952940,-500.0,0.00020821,2]
[330377598,1719337952954,-732.06,0.00020821,2]
[330377599,1719337952969,-500.0,0.00020821,2]
[330377600,1719337952983,-551.14,0.00020821,2]
[330377601,1719337952997,-500.0,0.00020821,2]
[330377602,1719337953012,-500.0,0.00020821,2]
[330377603,1719337953028,-4888.19,0.00020821,2]
[330377604,1719337953042,-1238.1,0.00020821,2]
[330377605,1719337953057,-500.0,0.00020821,2]
[330377606,1719337953070,-3533.14,0.00020821,2]
[330377607,1719337953085,-3632.37,0.00020821,2]
[330377608,1719337953098,-500.0,0.00020821,2]
[330377609,1719337953114,-5123.32,0.00020821,2]
[330377610,1719337953129,-500.0,0.00020821,2]
[330377611,1719337953144,-500.0,0.00020821,2]
[330377612,1719337953464,-712.46,0.00020821,2]
[330377613,1719337953526,-862.31,0.00020821,2]
[330377614,1719337953536,-500.0,0.00020821,2]
[330377615,1719337953545,-500.0,0.00020821,2]
[330377616,1719337953555,-560.41,0.00020821,2]
[330377617,1719337953565,-500.0,0.00020821,2]
[330377618,1719337953574,-2962.86,0.00020821,2]
[330377619,1719337953584,-1124.52,0.00020821,2]
[330377620,1719337953594,-500.0,0.00020821,2]
[330377621,1719337953604,-500.0,0.00020821,2]
[330377622,1719337953613,-5218.77,0.00020821,2]
[330377623,1719337953623,-1050.12,0.00020821,2]
[330377624,1719337953632,-872.11,0.00020821,2]
[330377625,1719337953642,-3045.87,0.00020821,2]
[330377626,1719337953652,-500.0,0.00020821,2]
[330377627,1719337953661,-500.0,0.00020821,2]
[330377628,1719337953671,-1520.45,0.00020821,2]
[330377629,1719337953681,-646.32,0.00020821,2]
[330377630,1719337953690,-2187.74,0.00020821,2]
[330377631,1719337953700,-537.51,0.00020821,2]
[330377632,1719337953709,-500.0,0.00020821,2]
[330377633,1719337953719,-2920.92,0.00020821,2]
[330377634,1719337953729,-365.54660611,0.00020821,2]
[330377635,1719337953739,-7369.5,0.00020821,2]
[330377636,1719337953749,-1872.97,0.00020821,2]
[330377637,1719337953758,-4019.83,0.00020821,2]
[330377638,1719337953767,-500.0,0.00020821,2]
[330377639,1719337953776,-6045.57,0.00020821,2]
[330377640,1719337953787,-500.0,0.00020821,2]
[330377641,1719337953797,-812.36,0.00020821,2]
[330377642,1719337953807,-500.0,0.00020821,2]
[330377643,1719337953817,-508.33554093,0.00020821,2]
[330377644,1719337953828,-500.0,0.00020821,2]
[330377645,1719337953838,-634.34,0.00020821,2]
[330377646,1719337953847,-805.26,0.00020821,2]
[330377647,1719337953857,-587.96,0.00020821,2]
[330377648,1719337953868,-2739.91,0.00020821,2]
[330377649,1719337953878,-606.69405696,0.00020821,2]
[330377650,1719337953889,-160.61507546,0.00020821,2]
[330377651,1719337953899,-500.0,0.00020821,2]
[330377652,1719337953909,-1158.31,0.00020821,2]
[330377653,1719337953919,-500.0,0.00020821,2]
[330377654,1719337953929,-1134.01,0.00020821,2]
[330377655,1719337953939,-500.0,0.00020821,2]
[330377656,1719337953949,-615.9,0.00020821,2]
[330377657,1719337953959,-500.0,0.00020821,2]
[330377658,1719337953968,-1656.37,0.00020821,2]
[330377659,1719337953978,-643.79,0.00020821,2]
[330377660,1719337953988,-500.0,0.00020821,2]
[330377661,1719337953999,-2906.26,0.00020821,2]
[330377662,1719337954010,-500.0,0.00020821,2]
[330377663,1719337954021,-2209.86,0.00020821,2]
[330377664,1719337954031,-500.0,0.00020821,2]
[330377665,1719337954041,-1797.61,0.00020821,2]
[330377666,1719337954051,-1052.7,0.00020821,2]
[330377667,1719337954061,-1660.97,0.00020821,2]
[330377668,1719337954070,-9362.98,0.00020821,2]
[330377669,1719337954080,-18533.12,0.00020821,2]
[330377670,1719337954090,-3674.69,0.00020821,2]
[330377671,1719337954100,-500.0,0.00020821,2]
[330377672,1719337954110,-500.0,0.00020821,2]
[330377673,1719337954120,-500.0,0.00020821,2]
[330377674,1719337954129,-521.43,0.00020821,2]
[330377675,1719337954139,-500.0,0.00020821,2]
[330377676,1719337954148,-500.0,0.00020821,2]
[330377677,1719337954158,-987.45,0.00020821,2]
[330377678,1719337954170,-1828.54,0.00020821,2]
[330377679,1719337954179,-500.0,0.00020821,2]
[330377680,1719337954189,-500.0,0.00020821,2]
[330377681,1719337954198,-500.0,0.00020821,2]
[330377682,1719337954208,-1060.9,0.00020821,2]
[330377683,1719337954218,-500.0,0.00020821,2]
[330377684,1719337954228,-438.8692553,0.00020821,2]
[330377685,1719337954237,-3489.35,0.00020821,2]
[330377686,1719337954249,-1048.33,0.00020821,2]
[330377687,1719337954471,-500.0,0.00020821,2]
[330377688,1719337954482,-582.75,0.00020821,2]
[330377689,1719337954491,-500.0,0.00020821,2]
[330377690,1719337954501,-500.0,0.00020821,2]
[330377691,1719337954511,-50997.71,0.00020821,2]
[330377692,1719337954520,-500.0,0.00020821,2]
[330377693,1719337954530,-7330.4,0.00020821,2]
[330377694,1719337954540,-1090.36,0.00020821,2]
[330377695,1719337954549,-3826.38,0.00020821,2]
[330377696,1719337954559,-588.44,0.00020821,2]
[330377697,1719337954568,-1076.79,0.00020821,2]
[330377698,1719337954578,-500.0,0.00020821,2]
[330377699,1719337954587,-875.7,0.00020821,2]
[330377700,1719337954596,-2013.15,0.00020821,2]
[330377701,1719337954606,-1764.68,0.00020821,2]
[330377702,1719337954615,-232.32930058,0.00020821,2]
[330377703,1719337954625,-2546.28,0.00020821,2]
[330377704,1719337954634,-710.06,0.00020821,2]
[330377705,1719337954643,-500.0,0.00020821,2]
[330377706,1719337954653,-1202.57,0.00020821,2]
[330377707,1719337954663,-575.15,0.00020821,2]
[330377708,1719337954672,-2661.42,0.00020821,2]
[330377709,1719337954682,-500.0,0.00020821,2]
[330377710,1719337954691,-2226.45,0.00020821,2]
[330377711,1719337954701,-500.0,0.00020821,2]
[330377712,1719337954710,-632.99,0.00020821,2]
[330377713,1719337954719,-500.0,0.00020821,2]
[330377714,1719337954729,-13097.11,0.00020821,2]
[330377715,1719337954738,-538.22,0.00020821,2]
[330377716,1719337954747,-1320.08,0.00020821,2]
[330377717,1719337954757,-500.0,0.00020821,2]
[330377718,1719337954766,-500.0,0.00020821,2]
[330377719,1719337954776,-500.0,0.00020821,2]
[330377720,1719337954786,-1721.67,0.00020821,2]
[330377721,1719337954796,-1003.19,0.00020821,2]
[330377722,1719337954805,-3940.81,0.00020821,2]
[330377723,1719337954814,-1938.52,0.00020821,2]
[330377724,1719337954823,-2588.15,0.00020821,2]
[330377725,1719337954833,-2469.45,0.00020821,2]
[330377726,1719337954843,-38471.4,0.00020821,2]
[330377727,1719337954853,-7195.96,0.00020821,2]
[330377728,1719337954862,-500.0,0.00020821,2]
[330377729,1719337954872,-500.0,0.00020821,2]
[330377730,1719337954881,-3038.22,0.00020821,2]
[330377731,1719337954891,-39156.53,0.00020821,2]
[330377732,1719337954901,-3163.49,0.00020821,2]
[330377733,1719337954910,-500.0,0.00020821,2]
[330377734,1719337954920,-860.82,0.00020821,2]
[330377735,1719337954930,-1243.76,0.00020821,2]
[330377736,1719337954939,-935.24,0.00020821,2]
[330377737,1719337954949,-500.0,0.00020821,2]
[330377738,1719337954958,-500.0,0.00020821,2]
[330377739,1719337954968,-500.0,0.00020821,2]
[330377740,1719337954977,-5532.62,0.00020821,2]
[330377741,1719337954987,-500.0,0.00020821,2]
[330377742,1719337954996,-2133.33,0.00020821,2]
[330377743,1719337955006,-27639.02,0.00020821,2]
[330377744,1719337955016,-3599.25,0.00020821,2]
[330377745,1719337955026,-500.0,0.00020821,2]
[330377746,1719337955035,-1003.49,0.00020821,2]
[330377747,1719337955045,-804.85,0.00020821,2]
[330377748,1719337955055,-500.0,0.00020821,2]
[330377749,1719337955065,-3089.03,0.00020821,2]
[330377750,1719337955074,-13348.12,0.00020821,2]
[330377751,1719337955083,-3865.6,0.00020821,2]
[330377752,1719337955093,-1591.79,0.00020821,2]
[330377753,1719337955102,-500.0,0.00020821,2]
[330377754,1719337955112,-828.38,0.00020821,2]
[330377755,1719337955121,-500.0,0.00020821,2]
[330377756,1719337955131,-19322.86,0.00020821,2]
[330377757,1719337955141,-500.0,0.00020821,2]
[330377758,1719337955151,-500.0,0.00020821,2]
[330377759,1719337955161,-3823.25,0.00020821,2]
[330377760,1719337955174,-500.0,0.00020821,2]
[330377761,1719337955184,-2767.76,0.00020821,2]
[330377762,1719337955194,-516.72,0.00020821,2]
[330377763,1719337955204,-500.0,0.00020821,2]
[330377764,1719337955216,-2132.96,0.00020821,2]
[330377765,1719337955225,-829.42,0.00020821,2]
[330377766,1719337955236,-1930.49,0.00020821,2]
[330377767,1719337955248,-768.12,0.00020821,2]
[330377768,1719337955258,-2051.61,0.00020821,2]
[330377769,1719337955269,-1106.84,0.00020821,2]
[330377770,1719337955278,-500.0,0.00020821,2]
[330377771,1719337955288,-3643.02,0.00020821,2]
[330377772,1719337955298,-500.0,0.00020821,2]